Cogmind - Beta 11.1 @@@ ROGUE MODE // 2022.05.22 @ 02:35:09 Player: Ruxi Result: Self-destructed Performance ------------- Evolutions (2) 1000 Regions Visited (5) 1000 Robots Destroyed (48) 240 Value Destroyed (1275) 1275 Prototype IDs (26) 520 Alien Tech Used (0) 0 Bonus (619) 619 TOTAL SCORE: 4654 Bonus ------- High Alert Combat Kills 92 Follower Combat Kills 235 Aligned with FarCom 300 Friendly Fire -8 Cogmind --------- Core Integrity 186/550 Matter 300/300 Energy 290/290 System Corruption 5% Temperature Danger (485) Movement Treading (167) Location -8/Materials Parts ------- > --- POWER (2) -------- Improved Deuterium Engine Improved Deuterium Engine > --- PROPULSION (4) --- Light Treads Armored Treads Armored Treads Armored Treads > --- UTILITY (3) ------ Large Storage Unit Layered Light Armor Plating Layered Light Armor Plating > --- WEAPON (2) ------- Gatling Laser Gatling Laser > --- INVENTORY (15) --- Improved Deuterium Engine Light Treads Light Treads Aerolev Unit Reaction Control System Cloak of Protection System Shield Shock Rifle Gatling Laser EM Pulse Cannon Missile Launcher Missile Launcher Improved Datajack Katana Katana Peak State ------------ > --- POWER ------------ Improved Deuterium Engine Improved Deuterium Engine > --- PROPULSION ------- Light Treads Armored Treads Armored Treads Armored Treads > --- UTILITY ---------- Large Storage Unit Layered Light Armor Plating Layered Light Armor Plating > --- WEAPON ----------- Gatling Laser Improved Datajack > --- INVENTORY -------- Improved Deuterium Engine Light Treads Light Treads Airjet Aerolev Unit Reaction Control System Cloak of Protection System Shield Shock Rifle Gatling Laser Gatling Laser Missile Launcher Missile Launcher Katana Katana [Rating: 39] Favorites ----------- Power Light Ion Engine Engine Light Ion Engine Power Core Light Nuclear Core Propulsion Light Treads Treads Light Treads Leg Aluminum Leg Wheel Wheel Hover Unit Airjet Utility Humpback Device Shield Generator Storage Humpback Processor Target Analyzer Protection Layered Light Armor Plating Weapon Assault Rifle Energy Gun Gatling Laser Ballistic Gun Assault Rifle Launcher Grenade Launcher Impact Weapon Great Maul Slashing Weapon Katana Special Melee Weapon Improved Datajack Build | -11 -10 -10 -10 -9 -8 ------- Run | Scr Mat Min Exi Min Mat Slots Evolved 4 | . . . . . 4 Power 1 | . . . . . 1 Propulsion 2 | . . . . . 2 Utility 1 | . . . . . 1 Weapon . | . . . . . . Parts Attached 104 | 6 7 . 3 16 72 Power 15 | 1 . . . 3 11 Engine 8 | 1 . . . 3 4 Core 7 | . . . . . 7 Reactor . | . . . . . . Propulsion 35 | 2 2 . . 3 28 Treads 12 | . 2 . . . 10 Leg 11 | 2 . . . . 9 Wheel 4 | . . . . 2 2 Hover 8 | . . . . 1 7 Flight . | . . . . . . Utility 21 | 1 2 . 2 6 10 Device 3 | . . . . 1 2 Storage 7 | 1 1 . 1 2 2 Processor 4 | . 1 . . 1 2 Hackware . | . . . . . . Protection 7 | . . . 1 2 4 Artifact . | . . . . . . Weapon 33 | 2 3 . 1 4 23 Energy Gun 13 | 2 . . . . 11 Energy Cannon . | . . . . . . Ballistic Gun 9 | . 2 . 1 2 4 Ballistic Cannon . | . . . . . . Launcher 5 | . 1 . . 2 2 Special Weapon . | . . . . . . Impact Weapon 1 | . . . . . 1 Slashing Weapon 3 | . . . . . 3 Piercing Weapon . | . . . . . . Special Melee Weapon 2 | . . . . . 2 Unidentified Prototypes 3 | . . . . . 3 Parts Lost 10 | . . . . 4 6 Power 2 | . . . . 2 . Propulsion 6 | . . . . 1 5 Utility . | . . . . . . Weapon 2 | . . . . 1 1 Highest Loss Streak 2 | . . . . 2 2 To Critical Strikes 1 | . . . . . 1 Average Slot Usage (%) 88 | . 89 100 95 81 95 Engine 10 | . 14 14 14 13 5 Core 3 | . . . . . 9 Treads 18 | . 17 28 28 19 12 Leg 5 | . 10 . . . 11 Wheel 2 | . . . . 2 2 Hover 3 | . . . . . 8 Storage 12 | . 14 14 14 13 9 Processor 4 | . 3 14 3 . 9 Protection 2 | . . . 5 1 3 Energy Gun 3 | . 10 . . . 8 Ballistic Gun 15 | . 16 14 16 25 1 Launcher 2 | . . 14 11 2 . Slashing Weapon 1 | . . . . . 4 Naked Turns . | . . . . . . Heaviest Build 218 | 12 13 13 208 207 218 Greatest Support 80 | 20 40 40 40 40 80 Greatest Overweight (x) 10 | 2 . . 5 10 7 Average Overweight (x) . | . . . . 3 . Largest Inventory Capacity 35 | 8 25 8 35 35 35 Average Capacity 22 | 7 8 8 16 31 15 Most Carried 19 | 6 8 8 17 19 15 Average Carried 13 | 3 6 8 10 16 13 Final Capacity 35 | 8 8 8 35 8 15 Final Carried 17 | 4 8 8 17 8 15 Class Distribution -------------------- 43% | Hauler-Mutant 38% | Mutant 17% | Scavenger-Mutant Dominant Class ---------------- Mutant | -10/Materials Mutant | -10/Mines Mutant | -10/Exiles Hauler-Mutant | -9/Mines Mutant | -8/Materials Resources | -11 -10 -10 -10 -9 -8 ----------- Run | Scr Mat Min Exi Min Mat Matter Collected 1941 | 260 100 . . 629 952 Remotely . | . . . . . . Salvage Created 1657 | . 203 . . 290 1164 Parts 92 | . 9 . . 17 66 Haulers Intercepted 6 | . 2 . . . 4 Recyclers Shooed 2 | . . . . . 2 Parts Field Recycled . | . . . . . . Retrieved Matter . | . . . . . . Parts Self-Destructed . | . . . . . . Prevented . | . . . . . . Kills | -11 -10 -10 -10 -9 -8 ------- Run | Scr Mat Min Exi Min Mat Combat Hostiles Destroyed 41 | . 4 . . 11 26 Melee 3 | . . . . . 3 Guns 22 | . 2 . . 9 11 AOE 13 | . 2 . . 2 9 Classes Destroyed 12 | . 4 . . 4 4 Worker 1 | . . . . 1 . Builder 2 | . 1 . . 1 . Tunneler 2 | . . . . 1 1 Hauler 6 | . 2 . . . 4 Recycler 1 | . . . . . 1 Watcher 2 | . . . . . 2 Swarmer 10 | . 2 . . . 8 Grunt 15 | . 2 . . 2 11 Brawler 1 | . . . . . 1 Sentry 7 | . . . . 2 5 Hunter 1 | . . . . . 1 Assembled 7 | . . . . 7 . Best Kill Streak 4 | . 3 . . 2 4 Combat Bots Only 4 | . 2 . . 2 4 Max Kills in Single Turn 3 | . 2 . . 1 3 Gunslinging . | . . . . . . Exploded 3 | . 2 . . 1 3 Melee 1 | . . . . . 1 Uniques/NPCs Destroyed . | . . . . . . Combat | -11 -10 -10 -10 -9 -8 -------- Run | Scr Mat Min Exi Min Mat Damage Taken 2714 | . 132 . . 757 1825 Core 494 | . 19 . . 111 364 Absorbed by Shields 86 | . . . . . 86 Redirected to Shielding 6 | . . . . 4 2 Core Remaining (%) 74 | 100 . . . 48 . Volleys Fired 117 | . 24 . . 40 53 Largest 2 | . 2 . . 2 2 Hottest 160 | . 100 . . 60 160 Shots Fired 216 | . 47 . . 78 91 Gun 196 | . 46 . . 74 76 Cannon . | . . . . . . Launcher 20 | . 1 . . 4 15 Special . | . . . . . . Kinetic 128 | . 34 . . 74 20 Thermal 68 | . 12 . . . 56 Explosive 20 | . 1 . . 4 15 Electromagnetic . | . . . . . . Robot Hit Streak 14 | . 5 . . 8 14 Robot Miss Streak 6 | . 3 . . 4 6 Penetration Max . | . . . . . . Secondary Targets 1 | . . . . . 1 Max Gunslinging Chain 1 | . . . . . 1 Shots Hit Robots 164 | . 25 . . 46 93 Core Hits 100 | . 10 . . 30 60 Critical Kills 1 | . . . . . 1 Critical Parts Destroyed 3 | . . . . . 3 Critical Strikes 7 | . 1 . . . 6 Burn 3 | . 1 . . . 2 Smash 4 | . . . . . 4 Melee Attacks 44 | . . . . . 44 Impact 19 | . . . . . 19 Slashing 23 | . . . . . 23 Piercing . | . . . . . . Sneak Attacks 8 | . . . . . 8 Combat Hostiles . | . . . . . . Follow-up Attacks 2 | . . . . . 2 Damage Inflicted 4301 | . 376 . . 667 3258 Guns 2050 | . 297 . . 582 1171 Cannons . | . . . . . . Explosions 894 | . 78 . . 85 731 Melee 1356 | . . . . . 1356 Ramming 1 | . 1 . . . . Kinetic 1057 | . 184 . . 582 291 Thermal 993 | . 113 . . . 880 Explosive 894 | . 78 . . 85 731 Electromagnetic . | . . . . . . Impact 769 | . . . . . 769 Slashing 587 | . . . . . 587 Piercing . | . . . . . . Highest Corruption 10 | . . . . 10 5 Average Corruption 6 | . . . . 9 3 Corruption Purged . | . . . . . . Corruption Blocked . | . . . . . . Effects 77 | . . . . 50 27 Message Errors 21 | . . . . 13 8 Matter Fused 18 | . . . . 13 5 Heat Flow Errors 9 | . . . . 4 5 Energy Discharges 9 | . . . . 6 3 Data Loss (minor) 13 | . . . . 8 5 Data Loss (major) 2 | . . . . 1 1 Misfires 2 | . . . . 2 . Alerts 2 | . . . . 2 . Weapon Failures 1 | . . . . 1 . Overload Shots . | . . . . . . Overflow Damage 296 | . 17 . . . 279 Projectiles . | . . . . . . Explosions 17 | . 17 . . . . Melee 279 | . . . . . 279 Knockbacks 3 | . . . . . 3 Impact 2 | . . . . . 2 Kinetic . | . . . . . . Secondary 1 | . . . . . 1 Self-Inflicted Damage 104 | . 27 . . . 77 Shots 4 | . 1 . . . 3 Rammed 1 | . 1 . . . . Targets Rammed 1 | . 1 . . . . Kicked . | . . . . . . Crushed . | . . . . . . Highest Temperature 776 | . 195 . . 254 776 Average Temperature 169 | . 86 . . 85 187 Received Heat Transfer 744 | . 54 . . 69 621 Effects 25 | . . . . . 25 Shutdowns 8 | . . . . . 8 Energy Bleed 2 | . . . . . 2 Interference 6 | . . . . . 6 Short Circuit 5 | . . . . . 5 Damage (minor) 2 | . . . . . 2 Damage (core) 2 | . . . . . 2 Siege Activations . | . . . . . . Robots Corrupted . | . . . . . . Combat Hostiles . | . . . . . . Parts Fried 4 | . . . . . 4 Impact Corruptions 7 | . . . . . 7 Robots Melted . | . . . . . . Combat Hostiles . | . . . . . . Parts Melted 4 | . 2 . . . 2 Heat Transferred 2575 | . 407 . . . 2168 Parts Sabotaged . | . . . . . . Parts Stolen . | . . . . . . Parts Stripped . | . . . . . . Power Chain Reactions . | . . . . . . Missiles Intercepted . | . . . . . . Alert | -11 -10 -10 -10 -9 -8 ------- Run | Scr Mat Min Exi Min Mat Peak Influence 707 | . 69 24 . 112 707 Initial 43 | . . 24 . . 43 Average 118 | . 28 24 . 16 268 Maximum Alert Level 3 | . . . . . 3 Low Security (%) 80 | 100 100 100 . 100 50 Level 1 4 | . . . . . 10 Level 2 15 | . . . . . 38 Level 3 . | . . . . . . Level 4 . | . . . . . . Level 5 . | . . . . . . High Security . | . . . . . . Max Security . | . . . . . . Squads Dispatched 9 | . . . . . 9 Investigation 6 | . . . . . 6 Extermination . | . . . . . . Reinforcement 3 | . . . . . 3 Assault . | . . . . . . Garrison . | . . . . . . Intercept . | . . . . . . Searches Triggered . | . . . . . . Construction Impeded 2 | . . . . . 2 Haulers Reinforced . | . . . . . . Active Scanning Responses . | . . . . . . Cargo Convoy Interrupts . | . . . . . . Stealth | -11 -10 -10 -10 -9 -8 --------- Run | Scr Mat Min Exi Min Mat Distress Signals 8 | . 1 . . 2 5 Communications Jammed . | . . . . . . Distress Signals . | . . . . . . Times Spotted 69 | . 10 . . 15 44 Peak Tracking Total 5 | . 4 . . 3 5 Tactical Retreats 4 | . . . . 4 . Traps | -11 -10 -10 -10 -9 -8 ------- Run | Scr Mat Min Exi Min Mat Traps Triggered 1 | . . . . . 1 Indirectly . | . . . . . . Trap Hack Attempts . | . . . . . . Triggered . | . . . . . . Disarmed . | . . . . . . Reprogrammed . | . . . . . . Reused . | . . . . . . Traps Extracted . | . . . . . . Installed . | . . . . . . Triggered . | . . . . . . Machines | -11 -10 -10 -10 -9 -8 ---------- Run | Scr Mat Min Exi Min Mat Machines Disabled 2 | . . . . 1 1 Max in Single Turn 1 | . . . . 1 . Machines Sabotaged . | . . . . . . Garrisons Compromised . | . . . . . . Overloaded Fab Kills . | . . . . . . Hacking | -11 -10 -10 -10 -9 -8 --------- Run | Scr Mat Min Exi Min Mat Machines Accessed 15 | . 2 . 2 . 11 Terminals 11 | . 2 . . . 9 Fabricators . | . . . . . . Repair Stations . | . . . . . . Recycling Units . | . . . . . . Scanalyzers 2 | . . . . . 2 Garrison Access . | . . . . . . Total Hacks 34 | . 7 . 2 . 25 Successful 20 | . 3 . 2 . 15 Failed 14 | . 4 . . . 10 Catastrophic 4 | . . . . . 4 Database Lockouts . | . . . . . . Manual 32 | . 7 . 1 . 24 Terminals 29 | . 7 . . . 22 Fabricators . | . . . . . . Repair Stations . | . . . . . . Recycling Units . | . . . . . . Scanalyzers 3 | . . . . . 3 Garrison Access . | . . . . . . Terminal Hacks 9 | . 1 . 2 . 6 Record 1 | . . . 1 . . Branch Access Points 2 | . 1 . . . 1 Alert Level 1 | . . . . . 1 Unreport Threat 3 | . . . . . 3 Zone Layout 1 | . . . . . 1 EX-Prototype ID Bank 1 | . . . 1 . . Fabricator Hacks . | . . . . . . Repair Station Hacks . | . . . . . . Recycling Unit Hacks . | . . . . . . Scanalyzer 1 | . . . . . 1 Insert Component 1 | . . . . . 1 Garrison Access Hacks . | . . . . . . Unauthorized Hacks 10 | . 2 . . . 8 Terminals 8 | . 2 . . . 6 Track 2 | . . . . . 2 Botnet 5 | . 2 . . . 3 Operators 1 | . . . . . 1 Fabricators . | . . . . . . Repair Stations . | . . . . . . Recycling Units . | . . . . . . Scanalyzers 2 | . . . . . 2 Extract 2 | . . . . . 2 Garrison Access . | . . . . . . Data Cores Recovered . | . . . . . . Used . | . . . . . . Hacking Detections 10 | . 2 . . . 8 Full Trace Events 3 | . . . . . 3 Feedback Events . | . . . . . . Feedback Blocked . | . . . . . . Robot Schematics Acquired . | . . . . . . Robots Built . | . . . . . . Authchips . | . . . . . . Time . | . . . . . . Total Robot Build Rating . | . . . . . . Part Schematics Acquired 6 | . . . . . 6 Parts Built . | . . . . . . Authchips . | . . . . . . Time . | . . . . . . Total Part Build Rating . | . . . . . . Parts Repaired . | . . . . . . Time . | . . . . . . Parts Recycled . | . . . . . . Recycled Matter . | . . . . . . Retrieved Matter . | . . . . . . Retrieved Components . | . . . . . . Parts Scanalyzed . | . . . . . . Part Schematics Acquired . | . . . . . . Parts Damaged . | . . . . . . Bothacking | -11 -10 -10 -10 -9 -8 ------------ Run | Scr Mat Min Exi Min Mat Used RIF Installer . | . . . . . . Robots Hacked 2 | . . . . . 2 Non-combat 1 | . . . . . 1 Combat 1 | . . . . . 1 Robot Hacks Applied 2 | . . . . . 2 parse_system 1 | . . . . . 1 no_distress 1 | . . . . . 1 Relay Couplers Released . | . . . . . . Fabnet Peak Effective % . | . . . . . . Robots Rewired . | . . . . . . Allies Hacked . | . . . . . . Hacks Repelled . | . . . . . . Allies | -11 -10 -10 -10 -9 -8 -------- Run | Scr Mat Min Exi Min Mat Total Allies 3 | . . . . 3 . Largest Group 3 | . . . . 3 3 Highest-Rated Group 40 | . . . . 40 40 Highest-Rated Ally 16 | . . . . 16 16 Total Orders 2 | . . . . . 2 STAY 1 | . . . . . 1 FOLLOW 1 | . . . . . 1 Ally Attacks 49 | . . . . . 49 Total Damage 444 | . . . . . 444 Kills 10 | . . . . . 10 Allies Corrupted . | . . . . . . Allies Melted . | . . . . . . Intel | -11 -10 -10 -10 -9 -8 ------- Run | Scr Mat Min Exi Min Mat Robot Analysis Total . | . . . . . . Derelict Logs Recovered 2 | . . . . 2 . Drone Launches . | . . . . . . Drone Recoveries . | . . . . . . Exploration | -11 -10 -10 -10 -9 -8 ------------- Run | Scr Mat Min Exi Min Mat Turns Passed 6193 | 58 453 32 695 2747 2208 Spaces Moved 2729 | 41 251 21 330 673 1413 Core 18 | 18 . . . . . Treads 1200 | . 127 21 330 358 364 Legs 589 | 23 124 . . . 442 Wheels 370 | . . . . 313 57 Hover 552 | . . . . 2 550 Flight . | . . . . . . Fastest Speed 45 | 50 120 160 160 80 45 Average Speed 189 | 110 140 160 207 368 111 Slowest Speed 960 | 150 160 160 560 960 245 Overloaded Moves . | . . . . . . Propulsion Burnouts . | . . . . . . Robots Hopped . | . . . . . . Cave-ins Triggered . | . . . . . . Exploration Rate (%) 49 | 3 44 6 76 97 71 Regions Visited 5 Branch Regions 3 Pre-discovered Areas 2 | . . . 1 1 . Known Exits Taken 1 | . 1 . . . . Unknown Exits Taken 4 | 1 . 1 1 1 . Scrap Searched 1 | . . . . 1 . Spaces Dug 7 | . . . . . 7 Terrain Destroyed 122 | . 7 . . 21 94 Melee 7 | . . . . . 7 Projectile . | . . . . . . AOE 115 | . 7 . . 21 87 Terrain Rammed . | . . . . . . Walls Destroyed . | . . . . . . Machines Disabled . | . . . . . . Actions | -11 -10 -10 -10 -9 -8 --------- Run | Scr Mat Min Exi Min Mat Total 3459 | 52 304 20 346 867 1870 Wait 323 | . 7 . . 104 212 Move 2725 | 40 251 20 329 672 1413 Hop . | . . . . . . Pick Up 72 | 6 9 . 11 14 32 Fast Attach 34 | 4 2 . 1 4 23 Attach 16 | 2 . . 1 4 9 Detach 5 | . . . . . 5 Swap 54 | . 5 . 1 8 40 Drop 74 | . 6 . 3 21 44 Fire 117 | . 24 . . 40 53 Melee 39 | . . . . . 39 Ram . | . . . . . . Kick . | . . . . . . Crush . | . . . . . . Escape Stasis . | . . . . . . Rewire . | . . . . . . Trap . | . . . . . . Miscellaneous . | . . . . . . Route ------- -11/Scrapyard -10/Materials (discovered 3 exits: [*Mat] / *Min x2) -10/Mines -10/Exiles -9/Mines (discovered 2 exits: *Mat x2) -8/Materials (discovered 2 exits: *Fac x2) History --------- Turn | Location | Event 13 | -11/Scrapyard | Discovered new exit (range 16) 59 | -11/Scrapyard | Entered Materials 111 | -10/Materials | Discovered new exit (range 15) 318 | -10/Materials | Build established: Mutant 380 | -10/Materials | Discovered new exit (range 10) 388 | -10/Materials | Identified exit to Mines 512 | -10/Materials | Entered Mines 536 | -10/Mines | Deemed a non-threat by the Exiles lab entrance 538 | -10/Mines | Discovered new exit (range 5) 544 | -10/Mines | Entered Exiles 584 | -10/Exiles | Met 8R-AWN 610 | -10/Exiles | Met EX-HEX 655 | -10/Exiles | Met EX-BIN 674 | -10/Exiles | Aligned with FarCom system 676 | -10/Exiles | Given EX-Vault access code 712 | -10/Exiles | Opened EX-Vault 725 | -10/Exiles | Found Cloak of Protection 760 | -10/Exiles | Warned to stay clear of 0b10 Research branches 805 | -10/Exiles | Met EX-DEC 855 | -10/Exiles | Visited The Gauntlet 949 | -10/Exiles | Learned location of Zion (-6) 1183 | -10/Exiles | Discovered new exit (range 11) 1239 | -10/Exiles | Left Exiles lab with Cloak of Protection 1239 | -10/Exiles | Entered Mines 1279 | -9/Mines | Discovered new exit (range 4) 1318 | -9/Mines | Build established: Hauler-Mutant 1431 | -9/Mines | A weapon hastily lodged in a ceiling crevice suddenly fell to the ground 2012 | -9/Mines | Discovered new exit (range 5) 2372 | -9/Mines | Assembled infested the area 2377 | -9/Mines | Assisted by a Guerilla fighting off Assembled 2651 | -9/Mines | Learned location of Storage (-7) 2664 | -9/Mines | System corruption reached 10% 2722 | -9/Mines | Learned location of 1 exit from Materials 3764 | -9/Mines | Core integrity fell below 50% 3878 | -9/Mines | Assisted by bots powering up and referring to "LRC-V3" 3983 | -9/Mines | Build established: Scavenger-Mutant 3986 | -9/Mines | Entered Materials 3986 | -8/Materials | Accompanied by 3 allies 3986 | -8/Materials | Evolved 4 slots: Power x1, Propulsion x2, Utility x1 3987 | -8/Materials | Identified exit to Factory 4831 | -8/Materials | Discovered exit to Factory (range 15) 5188 | -8/Materials | Build established: Mutant 5888 | -8/Materials | Core integrity fell below 50% 6194 | -8/Materials | Self-destructed Last Messages --------------- 06136_ Connecting with Terminal... >>Trojan(Track) Trojan loaded successfully. Testing... Tracking enabled and active. 06136_ ALERT: Suspicious activity at Terminal M006. Dispatching Investigation squad. 06149_ W-25 Informer sends out distress signal. 06151_ R-06 Scavenger collects Corrupted Wheel. 06157_ K-01 Serf collects debris. 06159_ R-06 Scavenger collects Lgt. Ion Engine. 06176_ Power failure, Imp. Deuterium Engine shutdown. 06183_ Acquired 1 matter. 06186_ Slug penetrates Wall. 06186_ Acquired 9 matter. 06190_ Overheating: Lrg. Storage Unit damaged (-137). 06193_ Imp. Deuterium Engine broken. 06193_ Overheating: Short circuit. 06194_ Overheating: System interference. 06194_ Gatling Laser temporarily disabled. Map ----- +----------------------------------------------------+ | ?????????????????????????????????????????????????? | | ?????????????????????????????????????????????????? | | ?????????????????????????????????????????????????? | | ?????????????????????????????????????????????????? | | ?????????????????????????????????????????????????? | | ?????????????????????????????????????????????????? | | ?????????????????????????????????????????????????? | | ?????????????????????????????????????????????????? | | ?????????????????????????????????????????????????? | | ?????????????????????????????????????????????????? | | ?????????????????????????????????????????????????? | | ?????????????????????????????????????????????????? | | ?????????????????????????????????????????????????? | | ?????????????????????????????????????????????????? | | ?????????????????????????????????????????????????? | | ?????????????????????????????????????????????????? | | ?????????????????????????????????????????????????? | | ?????????????????????????????????????????????????? | | ?????????????????????????????????????????????????? | | ?????????????????????????????????????????????????? | | ?????????????????????????????????????????????????? | | ?????????????????????????????????????????????????? | | ?????????????????????????????????????????????????? | | ?????????????????????????????????????????????????? | | ????????????????????????##########???????????????? | | ????? k ""###+#####@ #???????????????? | | ????? HH g%; #???????????????? | | ????? ##### ##### """ #???????????????? | | ???????#########??# #???# % """""#???????????????? | | ???????# #??# #???# gg"""""#???????????????? | | ???????# "" #??# #???# """""#???????????????? | | ???????# T" #??# #???# """ #???????????????? | | ???????# "" #??# #???# #???????????????? | | ?####### #??# #???# #???????????????? | | ?# ###/######## #########+#########??????????? | | ?# # #??????????? | | ## k a # #??????????? | | ## ^^ % w # ""#??????????? | | ## #### ############## + T"#??????????? | | ### ##??# #????????????# # ""#??????????? | | #?# #???# #?????######## # #??????????? | | #?# #???# #?????# ]] # ###########???????? | | #?# #???# #????## [# ####!= #???????? | | #?# #???# #????# ] # %+= /#???????? | | #?# #???# #????## # ####""" #???????? | | ### ##??# #?????# + #??#""" #???????? | | ## #??# #?????# # #??#""" #???????? | | #??# ############## #??# #???????? | | #??# # """ #??# #######+####??????? | | #??# %# """ "Y" #### #??????? | +----------------------------------------------------+ Best States ------------- Heat Dissipation 41 Energy Generation 27 Energy Capacity 480 Matter Stores 300 Matter Capacity 300 Sight Range 16 Terrain Scan Density 10 Armor Coverage 300 Propulsion Shielding 33 Evasion (%) 56 Targeting Accuracy 5 Melee Accuracy 5 Target Analysis 5 Recoil Reduction 4 Item Schematics ----------------- Field Laser | -8/Materials | Extracted Cooling System | -8/Materials | Extracted Minigun | -8/Materials | Extracted Imp. Propulsion Shielding | -8/Materials | Extracted Heat Sink | -8/Materials | Extracted Weight Redist. System | -8/Materials | Extracted Robot Schematics ------------------ None Fabricated ------------ Nothing Alien Tech Used ----------------- None Achievements -------------- Tank Challenges ------------ None Game ------ Seed NovaLobotomyCycler Manual? 0 Play Time 01:16:14 Cumulative 68.6 hours Start 2022.05.22 @ 01:17:48 End 2022.05.22 @ 02:35:09 Sessions 1 Manual Loads 0 Difficulty Rogue Special Mode None Game No. 49 Rogue 47 Adventurer 0 Explorer 2 Win Type - Total 0 Types 0/0/0/0/0/0/0/0/0 Lore% 24 Gallery% 31 Achievement% 26 Wizard Run 0 Options --------- ASCII 0 Keyboard 0 Movement Numpad Keybinds 0 Fullscreen 1 Font 18/SmallcapsGlow Map View 76x50 Tactical HUD 1 Map Filters NONE Filters NONE Steam 1 RUN: 93057838-2856-41a4-8900-a522710f6b98